[Event "European School-ch 2019"]
[Site "Mamaia"]
[Date "2019.06.02"]
[Round "3.53"]
[White "Vorobyova, Ekaterina"]
[Black "Obada, Ema"]
[Result "0-1"]
[ECO "B26"]
[WhiteElo "1795"]
[BlackElo "1889"]
[Annotator "NA"]
[PlyCount "118"]
[EventDate "2019.05.31"]
[EventType "swiss"]
[EventCountry "ROU"]
[SourceTitle "playchess.com"]
[Source "ChessBase"]
[SourceQuality "1"]
[TimeControl "40/5400+30:1800+30"]

1. e4 {[%emt 0:00:00]} c5 {[%emt 0:00:00]} 2. Nc3 {[%emt 0:00:00]} Nc6 {[%emt 0:00:00]} 3. g3 {[%emt 0:00:00]} g6 {[%emt 0:00:00]} 4. Bg2 {[%emt 0:00:00]} Bg7 {[%emt 0:00:00]} 5. d3 {[%emt 0:00:08]} d6 {[%emt 0:00:00]} 6. Be3 {[%emt 0:00:43]} e5 {[%emt 0:00:01]} 7. Qd2 {[%emt 0:02:37]} Be6 {[%emt 0:00:09]} 8. Nge2 {[%emt 0:01:36]} Nd4 {[%emt 0:01:44]} 9. O-O {[%emt 0:03:26]} Ne7 {[%emt 0:01:19]} 10. Bh6 {[%emt 0:05:11]} O-O {[%emt 0:07:09]} 11. Bxg7 {[%emt 0:00:50]} Kxg7 {[%emt 0:00:05]} 12. Nxd4 {[%emt 0:02:37]} cxd4 {[%emt 0:00:20]} 13. Ne2 {[%emt 0:00:40]} Rc8 {[%emt 0:13:52]} 14. f4 {[%emt 0:16:16]} f6 {[%emt 0:08:22]} 15. Rf2 {[%emt 0:16:04]} Qb6 {[%emt 0:02:44]} 16. c3 {[%emt 0:01:44]} Qa5 {[%emt 0:10:50]} 17. a3 {[%emt 0:04:59]} dxc3 {[%emt 0:09:25]} 18. Nxc3 {[%emt 0:02:19]} Nc6 {[%emt 0:01:45]} 19. Raf1 {[%emt 0:07:07]} Nd4 {[%emt 0:02:34]} 20. h3 Qb6 {[%emt 0:06:58]} 21. Kh2 {[%emt 0:09:13]} Bb3 {[%emt 0:05:56]} 22. g4 {[%emt 0:03:27]} Ne6 {[%emt 0:01:31]} 23. f5 {[%emt 0:05:29]} Nf4 {[%emt 0:00:43]} 24. Bf3 {[%emt 0:00:52]} g5 {[%emt 0:01:47]} 25. Bd1 {[%emt 0:01:32]} Bf7 {[%emt 0:02:49]} 26. Ne2 {[%emt 0:00:37]} Nxe2 {[%emt 0:02:16]} 27. Qxe2 {[%emt 0:02:02]} Rc7 {[%emt 0:02:22]} 28. Qf3 {[%emt 0:02:02]} Rfc8 {[%emt 0:02:08]} 29. h4 {[%emt 0:03:03]} h6 {[%emt 0:00:04]} 30. Kg2 {[%emt 0:01:07]} d5 {[%emt 0:05:22]} 31. Rh1 {[%emt 0:01:13]} dxe4 {[%emt 0:02:36]} 32. dxe4 {[%emt 0:00:15]} Qd4 {[%emt 0:00:35]} 33. Qh3 {[%emt 0:03:16]} Kf8 {[%emt 0:00:23]} 34. Qf3 {[%emt 0:00:45]} Rc1 {[%emt 0:03:23]} 35. hxg5 {[%emt 0:01:53]} hxg5 {[%emt 0:00:04]} 36. Rh8+ {[%emt 0:00:30]} Ke7 {[%emt 0:00:17]} 37. Rxc8 {[%emt 0:00:12]} Rxc8 {[%emt 0:00:03]} 38. a4 {[%emt 0:03:00]} Qb4 {[%emt 0:02:13]} 39. Qe3 {[%emt 0:01:42]} Rc4 {[%emt 0:01:36]} 40. Bf3 {[%emt 0:00:00]} Rd4 {[%emt 0:00:00]} 41. Rc2 {[%emt 0:03:07]} Kf8 {[%emt 0:02:38]} 42. Qc1 {[%emt 0:05:36]} Kg7 {[%emt 0:04:07]} 43. Rc3 {[%emt 0:02:29]} Qxa4 {[%emt 0:00:57]} 44. Kg3 {[%emt 0:01:12]} Rc4 {[%emt 0:01:44]} 45. Qd2 {[%emt 0:03:00]} Rxc3 {[%emt 0:00:45]} 46. Qxc3 {[%emt 0:00:05]} Qb3 {[%emt 0:00:26]} 47. Qd2 {[%emt 0:01:34]} b6 {[%emt 0:00:16]} 48. Kf2 {[%emt 0:00:20]} a5 {[%emt 0:00:21]} 49. Bd1 {[%emt 0:00:15]} Qc4 {[%emt 0:01:55]} 50. Qe3 {[%emt 0:00:36]} b5 {[%emt 0:00:32]} 51. Be2 {[%emt 0:00:30]} Qc2 {[%emt 0:00:23]} 52. Qa3 {[%emt 0:01:24]} b4 {[%emt 0:03:07]} 53. Qxa5 {[%emt 0:02:45]} Qxb2 {[%emt 0:00:17]} 54. Qc5 {[%emt 0:00:42]} b3 {[%emt 0:00:25]} 55. Ke3 {[%emt 0:01:50]} Qa1 {[%emt 0:01:38]} 56. Qe7 {[%emt 0:02:26]} Qd4+ {[%emt 0:00:57]} 57. Kf3 {[%emt 0:00:05]} b2 {[%emt 0:00:19]} 58. Qb7 {[%emt 0:00:09]} Qc3+ {[%emt 0:00:13]} 59. Kf2 {[%emt 0:01:12]} Qc2 {[%emt 0:00:15]} 0-1

[Event "European School-ch 2019"]
[Site "Mamaia"]
[Date "2019.06.02"]
[Round "3.54"]
[White "Ruzic, Pia Marie"]
[Black "Donghvani, Nia"]
[Result "1-0"]
[ECO "A35"]
[WhiteElo "1917"]
[BlackElo "1840"]
[Annotator "NA"]
[PlyCount "105"]
[EventDate "2019.05.31"]
[EventType "swiss"]
[EventCountry "ROU"]
[SourceTitle "playchess.com"]
[Source "ChessBase"]
[SourceQuality "1"]
[TimeControl "40/5400+30:1800+30"]

1. c4 {[%emt 0:00:00]} c5 {[%emt 0:00:00]} 2. Nc3 {[%emt 0:00:00]} Nc6 {[%emt 0:00:00]} 3. Nf3 {[%emt 0:01:09]} g6 {[%emt 0:00:00]} 4. d4 {[%emt 0:02:41]} cxd4 {[%emt 0:00:00]} 5. Nxd4 {[%emt 0:00:06]} Bg7 {[%emt 0:00:00]} 6. Nc2 {[%emt 0:03:10]} d6 {[%emt 0:01:18]} 7. e4 {[%emt 0:01:10]} Nf6 {[%emt 0:01:52]} 8. Be2 {[%emt 0:00:15]} O-O {[%emt 0:00:38]} 9. O-O {[%emt 0:00:12]} b6 {[%emt 0:04:19]} 10. Be3 {[%emt 0:05:07]} Bb7 {[%emt 0:00:39]} 11. Rc1 {[%emt 0:04:43]} Rc8 {[%emt 0:04:24]} 12. b3 {[%emt 0:01:01]} Qd7 {[%emt 0:02:21]} 13. f4 {[%emt 0:07:41]} e6 {[%emt 0:06:11]} 14. Qd2 {[%emt 0:02:34]} Rcd8 {[%emt 0:02:42]} 15. Rfd1 {[%emt 0:01:30]} Qc8 {[%emt 0:01:40]} 16. Bf3 {[%emt 0:00:30]} Rd7 {[%emt 0:03:57]} 17. Qe1 {[%emt 0:03:50]} Rfd8 {[%emt 0:01:32]} 18. Bf2 {[%emt 0:01:51]} Qa8 {[%emt 0:09:04]} 19. Rd3 {[%emt 0:04:25]} Ne7 {[%emt 0:09:19]} 20. Rcd1 {[%emt 0:01:11]} h5 {[%emt 0:05:08]} 21. h3 {[%emt 0:02:07]} Ne8 {[%emt 0:04:57]} 22. Bh4 {[%emt 0:07:33]} Qb8 {[%emt 0:08:32]} 23. Qe2 {[%emt 0:13:04]} Rc8 {[%emt 0:04:29]} 24. e5 {[%emt 0:06:49]} Nf5 {[%emt 0:01:49]} 25. Be1 {[%emt 0:04:45]} Bxf3 {[%emt 0:00:48]} 26. Qxf3 {[%emt 0:00:10]} a6 {[%emt 0:06:37]} 27. Ne3 {[%emt 0:02:44]} Nxe3 {[%emt 0:00:28]} 28. Qxe3 {[%emt 0:00:04]} b5 {[%emt 0:00:49]} 29. c5 {[%emt 0:09:53]} d5 {[%emt 0:02:57]} 30. b4 {[%emt 0:00:32]} Ra7 {[%emt 0:00:29]} 31. a4 {[%emt 0:01:01]} Qb7 {[%emt 0:01:57]} 32. a5 {[%emt 0:01:19]} Qe7 {[%emt 0:00:01]} 33. Ne2 {[%emt 0:01:21]} Bh6 {[%emt 0:00:51]} 34. Bd2 {[%emt 0:01:25]} Ng7 {[%emt 0:01:16]} 35. g4 {[%emt 0:01:21]} hxg4 {[%emt 0:01:21]} 36. hxg4 {[%emt 0:00:07]} Ne8 {[%emt 0:00:13]} 37. Qh3 {[%emt 0:02:21]} Bg7 {[%emt 0:00:22]} 38. g5 {[%emt 0:01:23]} Qc7 {[%emt 0:01:45]} 39. Qh2 {[%emt 0:00:45]} Kf8 {[%emt 0:00:48]} 40. Rh3 {[%emt 0:00:00]} Ke7 {[%emt 0:00:00]} 41. Be3 {[%emt 0:02:47]} Raa8 {[%emt 0:00:51]} 42. Rh7 {[%emt 0:03:04]} Qb7 {[%emt 0:02:07]} 43. Nd4 {[%emt 0:11:26]} Rc7 {[%emt 0:04:28]} 44. Rc1 {[%emt 0:01:25]} Rc6 {[%emt 0:00:22]} 45. Kf2 {[%emt 0:03:57]} Rd8 {[%emt 0:03:00]} 46. Qh4 {[%emt 0:03:54]} Kd7 {[%emt 0:02:20]} 47. Nf3 {[%emt 0:03:14]} Kc8 {[%emt 0:00:48]} 48. Bd4 {[%emt 0:00:10]} Bf8 {[%emt 0:02:29]} 49. Be3 {[%emt 0:02:31]} Ng7 {[%emt 0:03:00]} 50. Nd4 {[%emt 0:00:12]} Qd7 {[%emt 0:00:05]} 51. Rxg7 {[%emt 0:02:45]} Bxg7 {[%emt 0:00:18]} 52. Qh7 {[%emt 0:00:10]} f5 {[%emt 0:03:23]} 53. gxf6 {[%emt 0:02:36]} 1-0

[Event "European School-ch 2019"]
[Site "Mamaia"]
[Date "2019.06.02"]
[Round "3.55"]
[White "Zyapaeva, Polina"]
[Black "Mihailova, Alina"]
[Result "1-0"]
[ECO "A16"]
[WhiteElo "1806"]
[BlackElo "1825"]
[Annotator "NA"]
[PlyCount "75"]
[EventDate "2019.05.31"]
[EventType "swiss"]
[EventCountry "ROU"]
[SourceTitle "playchess.com"]
[Source "ChessBase"]
[SourceQuality "1"]
[TimeControl "40/5400+30:1800+30"]

1. c4 {[%emt 0:00:00]} Nf6 {[%emt 0:00:00]} 2. Nc3 {[%emt 0:00:00]} c5 {[%emt 0:00:00]} 3. e4 {[%emt 0:01:00]} Nc6 {[%emt 0:00:00]} 4. g3 {[%emt 0:03:01]} d6 {[%emt 0:00:31]} 5. h3 {[%emt 0:02:39]} g6 {[%emt 0:00:36]} 6. Bg2 {[%emt 0:02:30]} Bg7 {[%emt 0:00:25]} 7. Nge2 {[%emt 0:01:46]} Bd7 {[%emt 0:00:47]} 8. O-O {[%emt 0:01:04]} h5 {[%emt 0:06:25]} 9. d3 {[%emt 0:05:17]} a6 {[%emt 0:02:36]} 10. a4 {[%emt 0:11:16]} O-O {[%emt 0:11:31]} 11. Be3 {[%emt 0:02:48]} Rb8 {[%emt 0:02:06]} 12. Rb1 {[%emt 0:01:36]} Nb4 {[%emt 0:04:57]} 13. f4 {[%emt 0:09:40]} Qc8 {[%emt 0:11:17]} 14. Kh2 {[%emt 0:01:12]} Nc6 {[%emt 0:00:36]} 15. Qd2 {[%emt 0:02:38]} Ne8 {[%emt 0:06:45]} 16. f5 {[%emt 0:04:47]} gxf5 {[%emt 0:04:00]} 17. Bh6 {[%emt 0:09:09]} Kh7 {[%emt 0:06:22]} 18. Be3 {[%emt 0:11:46]} Rh8 {[%emt 0:04:57]} 19. exf5 {[%emt 0:02:49]} Kg8 {[%emt 0:01:51]} 20. Nd5 {[%emt 0:02:49]} b6 {[%emt 0:01:52]} 21. b4 {[%emt 0:07:13]} Qd8 {[%emt 0:09:50]} 22. b5 {[%emt 0:00:43]} axb5 {[%emt 0:00:30]} 23. axb5 {[%emt 0:00:05]} Ne5 {[%emt 0:01:13]} 24. Bg5 {[%emt 0:00:24]} Bf6 {[%emt 0:07:39]} 25. Nec3 {[%emt 0:03:27]} Nc7 {[%emt 0:06:25]} 26. Qf4 {[%emt 0:04:16]} Kf8 {[%emt 0:04:49]} 27. Qh4 {[%emt 0:02:17]} Nxd5 {[%emt 0:04:09]} 28. Nxd5 {[%emt 0:00:10]} Bxg5 {[%emt 0:00:24]} 29. Qxg5 {[%emt 0:00:02]} f6 {[%emt 0:00:16]} 30. Qe3 {[%emt 0:00:34]} Qc8 {[%emt 0:01:14]} 31. Be4 {[%emt 0:01:32]} Kf7 {[%emt 0:00:51]} 32. Ra1 {[%emt 0:00:28]} Qd8 {[%emt 0:00:19]} 33. Nf4 {[%emt 0:01:00]} Bc8 {[%emt 0:00:40]} 34. Ra7 {[%emt 0:00:14]} Bd7 {[%emt 0:00:25]} 35. Bd5+ {[%emt 0:00:34]} Ke8 {[%emt 0:00:32]} 36. Be6 {[%emt 0:00:32]} Rh7 {[%emt 0:00:23]} 37. Bxd7+ {[%emt 0:00:37]} Nxd7 {[%emt 0:00:01]} 38. Ne6 {[%emt 0:00:09]} 1-0

[Event "European School-ch 2019"]
[Site "Mamaia"]
[Date "2019.06.03"]
[Round "4.3"]
[White "Stoleriu, George"]
[Black "Ozdemir, Serhan Berat"]
[Result "1-0"]
[ECO "B24"]
[WhiteElo "2372"]
[BlackElo "1950"]
[Annotator "ChessBase"]
[PlyCount "99"]
[EventDate "2019.05.31"]
[EventType "swiss"]
[EventCountry "ROU"]
[SourceTitle "playchess.com"]
[Source "ChessBase"]
[SourceQuality "1"]
[TimeControl "40/5400+30:1800+30"]

1. e4 {[%emt 0:00:00]} c5 {[%emt 0:00:00]} 2. Nc3 {[%emt 0:00:03]} Nc6 {[%emt 0:00:20]} 3. Bb5 {[%emt 0:00:07]} Nd4 {[%emt 0:03:58]} 4. Bc4 {[%emt 0:00:08]} e6 {[%emt 0:01:25]} 5. Nge2 {[%emt 0:00:03]} Nf6 {[%emt 0:01:24]} 6. O-O {[%emt 0:00:11]} a6 {[%emt 0:03:27]} 7. Bb3 {[%emt 0:00:34]} d6 {[%emt 0:06:12]} 8. d3 {[%emt 0:00:25]} Nxb3 {[%emt 0:02:14]} 9. axb3 {[%emt 0:00:05]} Be7 {[%emt 0:04:46]} 10. f4 {[%emt 0:02:23]} O-O {[%emt 0:00:12]} 11. Kh1 {[%emt 0:00:18]} b6 {[%emt 0:03:43]} 12. Ng3 {[%emt 0:00:29]} Bb7 {[%emt 0:00:58]} 13. f5 {[%emt 0:05:04]} Nd7 {[%emt 0:09:21]} 14. Bf4 {[%emt 0:03:52]} e5 {[%emt 0:18:04]} 15. Be3 {[%emt 0:01:04]} Bg5 {[%emt 0:00:01]} 16. Bg1 {[%emt 0:00:24]} Nf6 {[%emt 0:02:27]} 17. Nh5 {[%emt 0:05:53]} b5 {[%emt 0:10:19]} 18. Nxf6+ {[%emt 0:00:47]} Bxf6 {[%emt 0:00:21]} 19. Qg4 {[%emt 0:01:30]} Rc8 {[%emt 0:01:27]} 20. Be3 {[%emt 0:01:36]} Re8 {[%emt 0:07:13]} 21. Rf3 {[%emt 0:06:56]} Kf8 {[%emt 0:02:10]} 22. Rh3 {[%emt 0:12:20]} h6 {[%emt 0:00:08]} 23. Ne2 {[%emt 0:02:03]} Bg5 {[%emt 0:03:57]} 24. Bxg5 {[%emt 0:03:08]} Qxg5 {[%emt 0:00:05]} 25. Qf3 {[%emt 0:01:23]} Ke7 {[%emt 0:05:10]} 26. Rg3 {[%emt 0:05:21]} Qf6 {[%emt 0:00:06]} 27. Nc3 {[%emt 0:00:29]} Kf8 {[%emt 0:05:18]} 28. Nd1 {[%emt 0:03:21]} c4 29. dxc4 {[%emt 0:02:48]} bxc4 {[%emt 0:01:48]} 30. Nc3 {[%emt 0:01:10]} cxb3 {[%emt 0:00:30]} 31. cxb3 {[%emt 0:00:05]} Rc5 {[%emt 0:02:19]} 32. Rd1 {[%emt 0:02:30]} Rd8 {[%emt 0:01:20]} 33. Qd3 {[%emt 0:02:52]} h5 {[%emt 0:02:11]} 34. Qd2 {[%emt 0:04:47]} h4 {[%emt 0:00:53]} 35. Rd3 {[%emt 0:00:07]} a5 {[%emt 0:02:09]} 36. Qe3 {[%emt 0:01:14]} Rcc8 {[%emt 0:01:23]} 37. Qb6 {[%emt 0:00:58]} Ba8 {[%emt 0:00:39]} 38. Qxa5 {[%emt 0:01:11]} Rxc3 {[%emt 0:00:28]} 39. Qxc3 {[%emt 0:04:42]} Bxe4 {[%emt 0:00:01]} 40. Rxd6 {[%emt 0:00:00]} Rxd6 {[%emt 0:00:00]} 41. Qc8+ {[%emt 0:01:32]} Qd8 {[%emt 0:03:42]} 42. Qxd8+ {[%emt 0:00:05]} Rxd8 {[%emt 0:00:02]} 43. Rxd8+ {[%emt 0:00:08]} Ke7 {[%emt 0:00:09]} 44. Rh8 {[%emt 0:00:03]} Bc2 {[%emt 0:01:03]} 45. Rxh4 {[%emt 0:01:26]} e4 {[%emt 0:00:19]} 46. Kg1 {[%emt 0:00:43]} Kf6 {[%emt 0:00:12]} 47. Rg4 {[%emt 0:01:13]} e3 {[%emt 0:00:27]} 48. Rg3 {[%emt 0:00:13]} e2 {[%emt 0:00:04]} 49. Kf2 {[%emt 0:00:03]} Bd1 {[%emt 0:00:13]} 50. b4 {[%emt 0:00:06]} 1-0

[Event "European School-ch 2019"]
[Site "Mamaia"]
[Date "2019.06.03"]
[Round "4.4"]
[White "Paraschiv, Paul-Alexandru"]
[Black "Ozkurt, Kutay"]
[Result "1-0"]
[ECO "B20"]
[WhiteElo "2055"]
[BlackElo "1885"]
[Annotator "NA"]
[PlyCount "77"]
[EventDate "2019.05.31"]
[EventType "swiss"]
[EventCountry "ROU"]
[SourceTitle "playchess.com"]
[Source "ChessBase"]
[SourceQuality "1"]
[TimeControl "40/5400+30:1800+30"]

1. e4 {[%emt 0:00:00]} c5 {[%emt 0:00:00]} 2. b3 {[%emt 0:00:00]} Nc6 {[%emt 0:00:00]} 3. Bb2 {[%emt 0:00:00]} e5 {[%emt 0:00:00]} 4. Bc4 {[%emt 0:00:04]} Nf6 {[%emt 0:00:00]} 5. d3 {[%emt 0:00:18]} d5 {[%emt 0:00:00]} 6. exd5 {[%emt 0:00:29]} Nxd5 {[%emt 0:00:00]} 7. Ne2 {[%emt 0:01:39]} Nb6 {[%emt 0:02:15]} 8. Bb5 {[%emt 0:01:04]} Bd7 {[%emt 0:00:24]} 9. O-O {[%emt 0:01:56]} Be7 {[%emt 0:01:02]} 10. f4 {[%emt 0:01:55]} Nd4 {[%emt 0:15:17]} (10... Nd5 $11) 11. Bxd7+ {[%emt 0:00:42]} Nxd7 $14 {[%emt 0:00:02]} 12. fxe5 {[%emt 0:05:53]} Nxe5 {[%emt 0:00:13]} 13. Nxd4 cxd4 {[%emt 0:00:01]} 14. Qh5 {[%emt 0:00:52]} Qd5 {[%emt 0:18:48]} 15. c4 {[%emt 0:01:22]} Qd6 {[%emt 0:11:47]} 16. Ba3 {[%emt 0:00:54]} Qe6 {[%emt 0:00:18]} 17. Bxe7 {[%emt 0:03:13]} Qxe7 {[%emt 0:00:02]} 18. Na3 {[%emt 0:09:27]} O-O {[%emt 0:01:23]} 19. Rfe1 {[%emt 0:01:40]} Qxa3 {[%emt 0:00:57]} 20. Qxe5 {[%emt 0:00:09]} Qb2 {[%emt 0:00:18]} 21. Qe2 {[%emt 0:00:26]} Qc3 {[%emt 0:00:47]} 22. Rac1 {[%emt 0:00:04]} Qa5 {[%emt 0:00:02]} 23. Qb2 {[%emt 0:00:27]} Rfe8 {[%emt 0:02:15]} 24. b4 {[%emt 0:00:34]} Qb6 {[%emt 0:00:09]} 25. c5 {[%emt 0:00:37]} Qf6 {[%emt 0:00:02]} 26. Qf2 {[%emt 0:00:09]} Qa6 {[%emt 0:02:11]} 27. Rxe8+ {[%emt 0:06:51]} Rxe8 {[%emt 0:00:01]} 28. Rf1 {[%emt 0:00:07]} Qe6 {[%emt 0:06:49]} 29. Qxd4 {[%emt 0:01:48]} Qe3+ {[%emt 0:00:01]} 30. Qxe3 {[%emt 0:00:11]} Rxe3 {[%emt 0:00:01]} 31. Rd1 {[%emt 0:03:43]} Re2 {[%emt 0:00:01]} 32. d4 {[%emt 0:00:09]} Rxa2 {[%emt 0:00:02]} 33. d5 {[%emt 0:00:20]} Kf8 {[%emt 0:00:48]} 34. d6 {[%emt 0:00:25]} Ke8 {[%emt 0:00:16]} 35. Re1+ {[%emt 0:00:07]} Kd8 {[%emt 0:02:26]} 36. Re7 {[%emt 0:00:02]} Kc8 {[%emt 0:00:10]} 37. Rc7+ {[%emt 0:00:01]} Kb8 {[%emt 0:00:05]} 38. Rxf7 {[%emt 0:00:02]} a5 {[%emt 0:00:19]} 39. Rf8+ {[%emt 0:00:13]} 1-0

[Event "European School-ch 2019"]
[Site "Mamaia"]
[Date "2019.06.03"]
[Round "4.5"]
[White "Celik, Eylul"]
[Black "Paraschiv, Petronela-Alexandra"]
[Result "1/2-1/2"]
[ECO "E00"]
[WhiteElo "1841"]
[BlackElo "1792"]
[Annotator "NA RC"]
[PlyCount "108"]
[EventDate "2019.05.31"]
[EventType "swiss"]
[EventCountry "ROU"]
[SourceTitle "playchess.com"]
[Source "ChessBase"]
[SourceQuality "1"]
[TimeControl "40/5400+30:1800+30"]

1. d4 {[%emt 0:00:00]} Nf6 {[%emt 0:00:00]} 2. c4 {[%emt 0:00:00]} e6 {[%emt 0:00:00]} 3. Bg5 {[%emt 0:00:00]} h6 {[%emt 0:00:00]} 4. Bxf6 {[%emt 0:00:04]} Qxf6 {[%emt 0:00:00]} 5. e3 {[%emt 0:00:02]} c5 {[%emt 0:00:10]} 6. Nf3 {[%emt 0:01:03] E00: Catalan Bogo-Indian (3 g3 Bb4+)} cxd4 7. exd4 {[%emt 0:00:45]} Bb4+ {[%emt 0:01:31]} 8. Nbd2 {[%emt 0:03:18]} O-O {[%emt 0:00:43]} 9. a3 {[%emt 0:05:03]} Ba5 {[%emt 0:01:39]} 10. b4 $146 {[%emt 0:01:33]} ({Predecessor:} 10. Bd3 d5 11. O-O Nc6 12. c5 Bc7 13. Qa4 e5 14. Bb5 e4 15. Bxc6 exf3 16. Bxd5 fxg2 17. Bxg2 Qf4 18. Rfd1 Qxh2+ 19. Kf1 Bh3 {0-1 (19) Lovass,I-Forintos,G (2450) Kecskemet 1983}) 10... Bc7 {[%emt 0:00:24]} 11. Be2 {[%emt 0:04:12]} Nc6 {[%emt 0:01:15]} 12. Nb3 {[%emt 0:01:55]} d6 {[%emt 0:02:37]} (12... a5 $15) 13. O-O {[%emt 0:00:55]} Bd7 {[%emt 0:00:35]} 14. Qd2 {[%emt 0:03:11]} Ne7 {[%emt 0:01:57]} 15. Rac1 {[%emt 0:06:41]} g5 {[%emt 0:05:25]} 16. d5 {[%emt 0:03:30]} e5 {[%emt 0:01:11]} 17. c5 {[%emt 0:02:28]} e4 {[%emt 0:03:54]} 18. Ne1 {[%emt 0:00:31]} Qe5 {[%emt 0:01:09]} 19. Rd1 {[%emt 0:04:29]} Nf5 {[%emt 0:04:40]} 20. g3 {[%emt 0:07:57]} Rae8 {[%emt 0:14:43]} 21. Ng2 {[%emt 0:06:18]} e3 {[%emt 0:05:24]} 22. Qd3 {[%emt 0:06:23]} exf2+ {[%emt 0:01:37]} 23. Rxf2 {[%emt 0:00:09]} Ne3 {[%emt 0:02:55]} 24. Nxe3 {[%emt 0:01:56]} Qxe3 {[%emt 0:00:07]} 25. Nd4 {[%emt 0:01:30]} Qxd3 {[%emt 0:06:51]} 26. Bxd3 {[%emt 0:03:26]} Re5 {[%emt 0:02:14]} 27. Bf5 {[%emt 0:10:57]} Ba4 {[%emt 0:01:58]} 28. Bc2 {[%emt 0:01:26]} Bd7 {[%emt 0:00:52]} 29. Bb3 {[%emt 0:12:31]} Rfe8 {[%emt 0:02:01]} 30. Kg2 {[%emt 0:05:14]} Re3 {[%emt 0:01:56]} 31. Rf6 {[%emt 0:03:06]} dxc5 {[%emt 0:11:31]} 32. bxc5 {[%emt 0:03:23]} Be5 {[%emt 0:00:53]} 33. Rf3 {[%emt 0:01:37]} Bxd4 {[%emt 0:01:56]} 34. Rxd4 {[%emt 0:00:19]} Bh3+ {[%emt 0:00:47]} 35. Kxh3 {[%emt 0:00:13]} Rxf3 {[%emt 0:00:04]} 36. Rb4 {[%emt 0:00:46]} Rc3 {[%emt 0:05:43]} 37. Rxb7 {[%emt 0:00:43]} Rxc5 {[%emt 0:00:14]} 38. d6 {[%emt 0:00:29]} Rf5 {[%emt 0:01:40]} 39. Rxa7 {[%emt 0:00:52]} Rd8 {[%emt 0:00:22]} 40. d7 {[%emt 0:00:22]} Kf8 {[%emt 0:00:29]} 41. Kg4 {[%emt 0:30:29]} Rf6 {[%emt 0:30:41]} 42. Ba4 {[%emt 0:00:00]} Rb6 {[%emt 0:00:00]} 43. Bc2 {[%emt 0:00:00]} (43. Rc7 $11) 43... Rb2 {[%emt 0:00:00]} 44. Bf5 {[%emt 0:00:00]} (44. Rc7 $17 {might work better.}) 44... Rxh2 {[%emt 0:00:00]} 45. a4 {[%emt 0:00:00]} Rd2 {[%emt 0:00:00]} 46. a5 {[%emt 0:00:00]} Rd6 {[%emt 0:00:00]} 47. Kh5 {[%emt 0:00:00]} Ke7 {[%emt 0:00:00]} 48. Rc7 {[%emt 0:00:00]} Rd5 {[%emt 0:00:00]} 49. Bg4 {[%emt 0:00:00]} Rxa5 {[%emt 0:00:00]} 50. Kxh6 {[%emt 0:00:00]} f5 {[%emt 0:00:00]} 51. Bh5 {[%emt 0:00:00]} g4 {[%emt 0:00:00]} 52. Be8 {[%emt 0:00:00]} Ra3 $11 {[%emt 0:00:00]} (52... f4 $5 53. gxf4 g3 $17) 53. Kg6 {[%emt 0:00:00]} Rf3 {[%emt 0:00:00]} 54. Kg5 {[%emt 0:00:00]} Rf1 {[%emt 0:04:05]} 1/2-1/2

[Event "European School-ch 2019"]
[Site "Mamaia"]
[Date "2019.06.03"]
[Round "4.6"]
[White "Bulau, Andrei-Cristian"]
[Black "Mocanu, Valeria"]
[Result "1-0"]
[ECO "D35"]
[WhiteElo "2244"]
[BlackElo "1760"]
[Annotator "ChessBase"]
[PlyCount "139"]
[EventDate "2019.05.31"]
[EventType "swiss"]
[EventCountry "ROU"]
[SourceTitle "playchess.com"]
[Source "ChessBase"]
[SourceQuality "1"]
[TimeControl "40/5400+30:1800+30"]

1. d4 {[%emt 0:00:00]} d5 {[%emt 0:00:00]} 2. c4 {[%emt 0:00:00]} e6 {[%emt 0:00:00]} 3. Nc3 {[%emt 0:00:00]} Nf6 {[%emt 0:00:00]} 4. cxd5 {[%emt 0:00:00]} exd5 {[%emt 0:00:00]} 5. Bg5 {[%emt 0:00:00]} c6 {[%emt 0:00:19]} 6. e3 {[%emt 0:00:00]} Be7 {[%emt 0:00:08]} 7. Bd3 {[%emt 0:00:00]} Ne4 {[%emt 0:02:21]} 8. Bxe7 {[%emt 0:02:07]} Qxe7 {[%emt 0:00:08]} 9. Nge2 {[%emt 0:00:24]} Bf5 {[%emt 0:02:04]} 10. O-O {[%emt 0:02:31]} Nxc3 {[%emt 0:00:13]} 11. bxc3 {[%emt 0:00:11]} Bxd3 12. Qxd3 {[%emt 0:00:04]} Nd7 {[%emt 0:02:03]} 13. c4 {[%emt 0:00:52]} dxc4 {[%emt 0:25:25]} 14. Qxc4 {[%emt 0:00:09]} O-O {[%emt 0:00:10]} 15. Qb3 {[%emt 0:01:36]} Nf6 {[%emt 0:00:28]} 16. Nf4 {[%emt 0:00:29]} b6 {[%emt 0:07:44]} 17. Rfc1 {[%emt 0:01:43]} Rfc8 {[%emt 0:01:13]} 18. Rc2 {[%emt 0:00:16]} Rc7 {[%emt 0:00:51]} 19. Rac1 {[%emt 0:00:22]} Rac8 {[%emt 0:00:08]} 20. Nd3 {[%emt 0:03:10]} h6 {[%emt 0:14:37]} 21. Qb4 {[%emt 0:16:28]} Qe6 {[%emt 0:13:16]} 22. h3 {[%emt 0:02:16]} Nd7 {[%emt 0:10:48]} 23. Nf4 {[%emt 0:01:30]} Qe4 {[%emt 0:01:52]} 24. Qd6 {[%emt 0:02:36]} Nf6 {[%emt 0:00:53]} 25. Rc4 {[%emt 0:06:47]} Qe8 {[%emt 0:08:37]} 26. a4 {[%emt 0:02:57]} c5 {[%emt 0:03:40]} 27. Ne2 {[%emt 0:00:58]} Ne4 {[%emt 0:01:07]} 28. Qf4 {[%emt 0:00:56]} Nd2 {[%emt 0:01:15]} 29. R4c2 {[%emt 0:00:50]} Nb3 {[%emt 0:00:27]} 30. Rb1 {[%emt 0:00:11]} Qxa4 {[%emt 0:03:44]} 31. Nc3 {[%emt 0:00:19]} Qc4 {[%emt 0:00:54]} 32. Rbb2 {[%emt 0:01:00]} cxd4 {[%emt 0:00:55]} 33. Nd5 {[%emt 0:03:11]} Qxc2 {[%emt 0:00:21]} 34. Rxc2 {[%emt 0:00:04]} Rxc2 {[%emt 0:00:04]} 35. Ne7+ {[%emt 0:00:03]} Kf8 {[%emt 0:01:10]} 36. Nxc8 Rxc8 {[%emt 0:00:04]} 37. exd4 {[%emt 0:00:38]} Rd8 {[%emt 0:00:50]} 38. Qc7 {[%emt 0:00:36]} Rxd4 {[%emt 0:00:22]} 39. Qxa7 {[%emt 0:00:12]} Rd6 {[%emt 0:00:34]} 40. Qc7 {[%emt 0:00:00]} Re6 {[%emt 0:00:00]} 41. Qd8+ {[%emt 0:03:29]} Re8 {[%emt 0:00:41]} 42. Qxb6 {[%emt 0:00:04]} Na1 {[%emt 0:01:49]} 43. Qa5 {[%emt 0:01:14]} Nc2 {[%emt 0:02:37]} 44. Qc5+ {[%emt 0:00:07]} Kg8 {[%emt 0:00:09]} 45. Qxc2 {[%emt 0:00:04]} g6 {[%emt 0:02:48]} 46. Kh2 {[%emt 0:00:18]} Kg7 {[%emt 0:00:21]} 47. Qc3+ {[%emt 0:00:14]} Kh7 {[%emt 0:01:18]} 48. g4 {[%emt 0:00:10]} Re6 {[%emt 0:01:30]} 49. Kg3 {[%emt 0:00:12]} g5 {[%emt 0:00:29]} 50. h4 {[%emt 0:00:29]} Kg6 {[%emt 0:09:05]} 51. Qf3 {[%emt 0:00:53]} gxh4+ {[%emt 0:05:04]} 52. Kxh4 {[%emt 0:00:04]} Kg7 {[%emt 0:00:39]} 53. Qc3+ {[%emt 0:00:11]} Kh7 {[%emt 0:00:22]} 54. f4 {[%emt 0:00:05]} Rg6 {[%emt 0:00:29]} 55. f5 {[%emt 0:00:45]} Rg7 {[%emt 0:00:24]} 56. Qf6 {[%emt 0:00:26]} Kg8 {[%emt 0:00:17]} 57. Kh5 {[%emt 0:00:42]} Kh7 {[%emt 0:00:44]} 58. Qxh6+ {[%emt 0:00:40]} Kg8 {[%emt 0:00:05]} 59. Qd6 {[%emt 0:00:30]} Rh7+ {[%emt 0:01:26]} 60. Kg5 {[%emt 0:00:07]} Rg7+ {[%emt 0:00:06]} 61. Kf4 {[%emt 0:00:15]} Kh7 {[%emt 0:01:33]} 62. Qf8 {[%emt 0:00:27]} f6 {[%emt 0:00:57]} 63. Qxf6 {[%emt 0:00:13]} Rg8 {[%emt 0:00:26]} 64. g5 {[%emt 0:00:09]} Rf8 {[%emt 0:00:11]} 65. Qh6+ {[%emt 0:00:08]} Kg8 {[%emt 0:00:05]} 66. f6 {[%emt 0:00:18]} Rf7 {[%emt 0:00:05]} 67. Kf5 {[%emt 0:00:09]} Rc7 {[%emt 0:01:47]} 68. Qh2 {[%emt 0:00:33]} Rf7 {[%emt 0:01:25]} 69. g6 {[%emt 0:00:13]} Rb7 {[%emt 0:00:10]} 70. Qa2+ {[%emt 0:00:08]} 1-0